Cogmind - Beta 16.1 @@@ ROGUE MODE // 2026.02.11 @ 13:13:02 Player: SunShine214 Result: Destroyed by H-61 Shepherd with Heavy Assault Cannon Performance ------------- Evolutions (2) 1000 Regions Visited (5) 1000 Robots Destroyed (33) 165 Value Destroyed (1003) 1003 Prototype IDs (23) 460 Alien Tech Used (0) 0 Bonus (300) 300 TOTAL SCORE: 3928 Bonus ------- Aligned with FarCom 300 Cogmind --------- Core Integrity 0/550 Matter 190/300 Energy 265/265 System Corruption 6% Temperature Cool (0) Movement Walking (130) Location -8/Materials Parts ------- > --- POWER (1) -------- Improved Ion Engine > --- PROPULSION (4) --- Titanium Leg Titanium Leg > --- UTILITY (4) ------ Advanced Heat Sink Signal Interpreter Advanced Targeting Computer Hacking Suite > --- WEAPON (2) ------- (None) > --- INVENTORY (5) ---- Light Ion Engine 0b10 Alert Chip Flak Cannon Welding Torch Flail Peak State ------------ > --- POWER ------------ Improved Ion Engine > --- PROPULSION ------- Light Treads Light Treads Aluminum Leg Improved Carbon-fiber Leg > --- UTILITY ---------- Advanced Heat Sink Signal Interpreter Advanced Targeting Computer Hacking Suite > --- WEAPON ----------- Heavy Laser Rocket Launcher > --- INVENTORY -------- Light Ion Engine 0b10 Alert Chip Flak Cannon Welding Torch Flail [Rating: 28] Favorites ----------- Power Light Ion Engine Engine Light Ion Engine Propulsion Light Treads Treads Light Treads Leg Aluminum Leg Flight Unit Flight Unit Utility Small Storage Unit Device Advanced Heat Sink Storage Small Storage Unit Processor Signal Interpreter Hackware Hacking Suite Weapon Mining Claw Energy Gun Small Laser Ballistic Gun Assault Rifle Launcher Rocket Launcher Impact Weapon Flail Slashing Weapon Mining Claw Build | -11 -10 -10 -10 -9 -8 ------- Run | Yrd Mat Min Exi Min Mat Slots Evolved 4 | . . . . . 4 Power . | . . . . . . Propulsion 2 | . . . . . 2 Utility 2 | . . . . . 2 Weapon . | . . . . . . Parts Attached 35 | 6 7 3 . . 19 Power 4 | 1 1 1 . . 1 Engine 4 | 1 1 1 . . 1 Core . | . . . . . . Reactor . | . . . . . . Propulsion 14 | 2 2 2 . . 8 Treads 6 | 2 2 . . . 2 Leg 5 | . . . . . 5 Wheel . | . . . . . . Hover . | . . . . . . Flight 3 | . . 2 . . 1 Utility 6 | 1 1 . . . 4 Device 2 | . . . . . 2 Storage 1 | 1 . . . . . Processor 2 | . 1 . . . 1 Hackware 1 | . . . . . 1 Protection . | . . . . . . Artifact . | . . . . . . Weapon 11 | 2 3 . . . 6 Energy Gun 4 | . 1 . . . 3 Energy Cannon . | . . . . . . Ballistic Gun 3 | 2 . . . . 1 Ballistic Cannon . | . . . . . . Launcher 1 | . . . . . 1 Special Weapon . | . . . . . . Impact Weapon 1 | . 1 . . . . Slashing Weapon 2 | . 1 . . . 1 Piercing Weapon . | . . . . . . Special Melee Weapon . | . . . . . . Unidentified Prototypes . | . . . . . . Corrupted Parts 3 | . . . . . 3 System Corruption 6 | . . . . . 6 Parts Lost 22 | . 4 3 . . 15 Power 2 | . 1 . . . 1 Propulsion 10 | . 1 2 . . 7 Utility 2 | . . . . . 2 Weapon 8 | . 2 1 . . 5 Highest Loss Streak 9 | . 2 2 . . 9 To Critical Strikes . | . . . . . . Average Backups 4 | . 3 7 8 8 4 Power . | . . . 1 1 1 Propulsion . | . . . . . . Utility 1 | . 1 3 3 3 1 Weapon 1 | . . 3 3 3 1 Tool/Special . | . . . . . . Unused Backups 6 | . . 1 1 . 4 Power 1 | . . . . . 1 Propulsion 1 | . . 1 . . . Utility 2 | . . . 1 . 1 Weapon 1 | . . . . . 1 Tool/Special 1 | . . . . . 1 Average Slot Usage (%) 84 | . 89 83 85 85 77 Engine 11 | . 12 14 14 14 7 Treads 16 | . 27 8 . . 12 Leg 2 | . . . . . 12 Flight 8 | . . 18 28 28 3 Device 1 | . . . . . 6 Storage 11 | . 14 14 14 14 1 Processor 11 | . 7 14 14 14 12 Hackware 1 | . . . . . 8 Energy Gun 5 | . 10 . . . 5 Ballistic Gun 3 | . 7 . . . 2 Impact Weapon 2 | . 6 . . . . Slashing Weapon 6 | . 1 14 14 14 2 Peak Build Rating 28 | 6 8 8 7 7 28 Average Rating 9 | 4 6 6 7 7 18 On Entrance 5 | . 6 8 7 7 7 Avg Prop Armor Cover (%) 16 | . . . . . 16 Naked Turns . | . . . . . . Heaviest Build 16 | 12 12 10 10 10 16 Greatest Support 44 | 40 40 40 8 8 44 Greatest Overweight (x) 3 | . . 3 1 1 1 Average Overweight (x) . | . . . 1 1 . Largest Inventory Capacity 8 | 8 8 8 8 8 8 Average Capacity 7 | 6 8 8 8 8 5 Most Carried 8 | . 8 8 8 8 8 Average Carried 4 | . 3 7 7 8 4 Final Capacity 8 | 8 8 8 8 8 5 Final Carried 8 | . 8 8 8 8 5 Class Distribution -------------------- 80% | Mutant 17% | Scavenger-Mutant Dominant Class ---------------- Mutant | -10/Materials Mutant | -10/Mines Mutant | -10/Exiles Mutant | -9/Mines Scavenger-Mutant | -8/Materials Resources | -11 -10 -10 -10 -9 -8 ----------- Run | Yrd Mat Min Exi Min Mat Matter Collected 667 | 128 332 44 . . 163 Remotely . | . . . . . . Salvage Created 1065 | . 600 33 . . 432 Parts 57 | . 25 4 . . 28 Haulers Intercepted 1 | . 1 . . . . Recyclers Shooed 1 | . . . . . 1 Parts Field Recycled . | . . . . . . Retrieved Matter . | . . . . . . Parts Self-Destructed . | . . . . . . Prevented . | . . . . . . Parts Restored . | . . . . . . Kills | -11 -10 -10 -10 -9 -8 ------- Run | Yrd Mat Min Exi Min Mat Combat Hostiles Destroyed 27 | . 15 3 . . 9 Melee 9 | . 4 3 . . 2 Guns 12 | . 8 . . . 4 AOE 3 | . . . . . 3 Classes Destroyed 11 | . 5 1 . . 5 Worker 2 | . 2 . . . . Builder 1 | . . . . . 1 Hauler 1 | . 1 . . . . Recycler 1 | . . . . . 1 Operator 2 | . 2 . . . . Swarmer 5 | . 3 2 . . . Grunt 17 | . 12 . . . 5 Sentry 1 | . . . . . 1 Specialist 2 | . . . . . 2 Hunter 1 | . . . . . 1 Assembled 1 | . . 1 . . . Best Kill Streak 4 | . 3 2 . . 4 Combat Bots Only 4 | . 3 2 . . 4 Max Kills in Single Turn 2 | . 1 1 . . 2 Gunslinging . | . . . . . . Exploded 1 | . . . . . 1 Melee 1 | . 1 1 . . 1 Uniques/NPCs Destroyed . | . . . . . . Combat | -11 -10 -10 -10 -9 -8 -------- Run | Yrd Mat Min Exi Min Mat Hostile Shots Fired 271 | . 136 13 . . 122 Missed 81 | . 40 3 . . 38 Hits 190 | . 96 10 . . 84 Melee 4 | . . 4 . . . Projectile 186 | . 96 6 . . 84 Critical Strikes 3 | . 1 . . . 2 Damage Taken 2802 | . 1087 140 . . 1575 Core 733 | . 160 18 . . 555 Absorbed by Shields . | . . . . . . Core Remaining (%) 64 | 100 . . . 28 . Volleys Fired 93 | . 72 . . . 21 Largest 2 | . 2 . . . 2 Hottest 102 | . 60 . . . 102 Shots Fired 119 | . 92 . . . 27 Gun 107 | . 92 . . . 15 Cannon . | . . . . . . Launcher 12 | . . . . . 12 Special . | . . . . . . Kinetic 50 | . 50 . . . . Thermal 54 | . 42 . . . 12 Explosive 12 | . . . . . 12 Electromagnetic 3 | . . . . . 3 Robot Hit Streak 10 | . 9 . . . 10 Robot Miss Streak 4 | . 4 . . . 1 Penetration Max . | . . . . . . Secondary Targets . | . . . . . . Shots Hit Robots 127 | . 86 7 . . 34 Core Hits 50 | . 23 3 . . 24 Critical Kills . | . . . . . . Critical Parts Destroyed 4 | . 4 . . . . Critical Strikes 7 | . 4 . . . 3 Burn 3 | . . . . . 3 Smash 4 | . 4 . . . . Melee Attacks 75 | . 44 15 . . 16 Impact 33 | . 33 . . . . Slashing 42 | . 11 15 . . 16 Piercing . | . . . . . . Sneak Attacks 8 | . 5 3 . . . Combat Hostiles 1 | . . 1 . . . Follow-up Attacks 2 | . . . . . 2 Damage Inflicted 3024 | . 1704 169 . . 1151 Guns 1001 | . 758 . . . 243 Cannons . | . . . . . . Explosions 576 | . . . . . 576 Melee 1424 | . 945 169 . . 310 Ramming 23 | . 1 . . . 22 Kinetic 470 | . 470 . . . . Thermal 497 | . 288 . . . 209 Explosive 576 | . . . . . 576 Electromagnetic 34 | . . . . . 34 Impact 752 | . 752 . . . . Slashing 672 | . 193 169 . . 310 Piercing . | . . . . . . Highest Corruption 10 | . . 10 10 10 6 Average Corruption 8 | . . 9 10 10 5 Corruption Purged . | . . . . . . Corruption Blocked . | . . . . . . Effects 33 | . . 12 9 . 12 Message Errors 8 | . . 5 1 . 2 Matter Fused 8 | . . 3 1 . 4 Heat Flow Errors 6 | . . 1 3 . 2 Energy Discharges 5 | . . 2 2 . 1 Data Loss (minor) 5 | . . 1 2 . 2 Data Loss (major) 1 | . . . . . 1 Overload Shots . | . . . . . . Overflow Damage 249 | . 244 5 . . . Projectiles . | . . . . . . Explosions . | . . . . . . Melee 249 | . 244 5 . . . Knockbacks 4 | . 4 . . . . Impact 4 | . 4 . . . . Kinetic . | . . . . . . Secondary . | . . . . . . Self-Inflicted Damage 14 | . . . . . 14 Shots . | . . . . . . Rammed . | . . . . . . Targets Rammed 3 | . 1 . . . 2 Kicked 2 | . . . . . 2 Crushed 1 | . 1 . . . . Highest Temperature 255 | . 64 126 255 . 160 Average Temperature 66 | . 25 69 122 . 47 Received Heat Transfer 1044 | . 567 . . . 477 Siege Activations . | . . . . . . Martial Activations . | . . . . . . Shielding Activations . | . . . . . . Robots Disrupted . | . . . . . . Combat Hostiles . | . . . . . . Robots Corrupted 4 | . 4 . . . . Combat Hostiles 3 | . 3 . . . . Parts Fried 6 | . 6 . . . . Impact Corruptions 11 | . 11 . . . . Robots Melted . | . . . . . . Combat Hostiles . | . . . . . . Parts Melted 1 | . . . . . 1 Heat Transferred 1279 | . 650 . . . 629 Parts Sabotaged . | . . . . . . Parts Stolen . | . . . . . . Parts Stripped . | . . . . . . Power Chain Reactions . | . . . . . . Alert | -11 -10 -10 -10 -9 -8 ------- Run | Yrd Mat Min Exi Min Mat Maximum Alert Level . | . . . . . . Low Security (%) 100 | 100 100 100 . 100 100 Level 1 . | . . . . . . Level 2 . | . . . . . . Level 3 . | . . . . . . Level 4 . | . . . . . . Level 5 . | . . . . . . High Security . | . . . . . . Max Security . | . . . . . . Peak Influence 166 | . 125 71 . . 166 Initial 31 | . . 31 . . . Average 40 | . 60 9 . . 48 Influence Increases 869 | . 455 50 . . 364 Destroy 0b10 Robot/C 520 | . 300 40 . . 180 Destroy 0b10 Robot/NC 35 | . 25 . . . 10 Destroy Leader 122 | . 62 10 . . 50 Successful Hack 18 | . 18 . . . . Disable Machine 15 | . 15 . . . . Destroy Structure 84 | . 5 . . . 79 Lose Combat Pursuer 75 | . 30 . . . 45 Influence Decreases 760 | . 373 132 . . 255 Entered New Map 51 | . . 51 . . . Time Decay 554 | . 333 71 . . 150 Lost Part 155 | . 40 10 . . 105 Squads Dispatched 7 | . 3 . . . 4 Investigation 1 | . . . . . 1 Extermination . | . . . . . . Reinforcement 6 | . 3 . . . 3 Assault . | . . . . . . Garrison . | . . . . . . Intercept . | . . . . . . Searches Triggered . | . . . . . . Construction Impeded 1 | . . . . . 1 Haulers Reinforced . | . . . . . . Active Scanning Responses . | . . . . . . Cargo Convoy Interrupts . | . . . . . . Stealth | -11 -10 -10 -10 -9 -8 --------- Run | Yrd Mat Min Exi Min Mat Distress Signals 1 | . 1 . . . . Communications Jammed . | . . . . . . Distress Signals . | . . . . . . Times Spotted 47 | . 28 6 . . 13 Peak Tracking Total 4 | . 4 2 . . 4 Tactical Retreats 6 | . 2 1 . . 3 Traps | -11 -10 -10 -10 -9 -8 ------- Run | Yrd Mat Min Exi Min Mat Traps Triggered 1 | . . . . . 1 Indirectly . | . . . . . . Trap Hack Attempts . | . . . . . . Triggered . | . . . . . . Disarmed . | . . . . . . Reprogrammed . | . . . . . . Reused . | . . . . . . Traps Extracted . | . . . . . . Installed . | . . . . . . Triggered . | . . . . . . Machines | -11 -10 -10 -10 -9 -8 ---------- Run | Yrd Mat Min Exi Min Mat Machines Disabled 1 | . 1 . . . . Max in Single Turn 1 | . 1 . . . . Machines Repaired . | . . . . . . Machines Dismantled . | . . . . . . Machines Sabotaged . | . . . . . . Overloaded Fab Kills . | . . . . . . Hacking | -11 -10 -10 -10 -9 -8 --------- Run | Yrd Mat Min Exi Min Mat Machines Accessed 5 | . 2 . 1 . 2 Terminals 4 | . 2 . . . 2 Fabricators . | . . . . . . Repair Stations . | . . . . . . Recycling Units . | . . . . . . Scanalyzers . | . . . . . . Garrison Access . | . . . . . . Total Hacks 11 | . 3 . 1 . 7 Successful 4 | . 2 . 1 . 1 Failed 7 | . 1 . . . 6 Catastrophic 3 | . . . . . 3 Database Lockouts . | . . . . . . Manual 7 | . . . 1 . 6 Terminals 10 | . 3 . . . 7 Fabricators . | . . . . . . Repair Stations . | . . . . . . Recycling Units . | . . . . . . Scanalyzers . | . . . . . . Garrison Access . | . . . . . . Terminal Hacks 4 | . 2 . 1 . 1 Level Access Points 1 | . 1 . . . . Branch Access Points 1 | . . . . . 1 Hauler Manifests 1 | . 1 . . . . Proto ID Catalog 1 | . . . 1 . . Fabricator Hacks . | . . . . . . Repair Station Hacks . | . . . . . . Recycling Unit Hacks . | . . . . . . Scanalyzer . | . . . . . . Garrison Access Hacks . | . . . . . . Unauthorized Hacks . | . . . . . . Terminals . | . . . . . . Fabricators . | . . . . . . Repair Stations . | . . . . . . Recycling Units . | . . . . . . Scanalyzers . | . . . . . . Garrison Access . | . . . . . . Data Cores Recovered . | . . . . . . Used . | . . . . . . Hacking Detections 4 | . 2 . . . 2 Full Trace Events 1 | . . . . . 1 Feedback Events . | . . . . . . Feedback Blocked . | . . . . . . Robot Schematics Acquired . | . . . . . . Robots Built . | . . . . . . Authchips . | . . . . . . Time . | . . . . . . Total Robot Build Rating . | . . . . . . Part Schematics Acquired . | . . . . . . Parts Built . | . . . . . . Authchips . | . . . . . . Time . | . . . . . . Total Part Build Rating . | . . . . . . Part Studies Acquired . | . . . . . . Parts Repaired . | . . . . . . Time . | . . . . . . Parts Recycled . | . . . . . . Recycled Matter . | . . . . . . Retrieved Matter . | . . . . . . Retrieved Components . | . . . . . . Parts Scanalyzed . | . . . . . . Part Schematics Acquired . | . . . . . . Parts Damaged . | . . . . . . Bothacking | -11 -10 -10 -10 -9 -8 ------------ Run | Yrd Mat Min Exi Min Mat Used RIF Installer . | . . . . . . Robots Hacked . | . . . . . . Non-combat . | . . . . . . Combat . | . . . . . . Robot Hacks Applied . | . . . . . . Relay Couplers Released . | . . . . . . Fabnet Peak Effective % . | . . . . . . Robots Rewired . | . . . . . . Allies Hacked . | . . . . . . Hacks Repelled . | . . . . . . Allies | -11 -10 -10 -10 -9 -8 -------- Run | Yrd Mat Min Exi Min Mat Total Allies 3 | . . 3 . . . Largest Group 3 | . . 3 3 . . Highest-Rated Group 40 | . . 40 40 . . Highest-Rated Ally 16 | . . 16 16 . . Total Orders . | . . . . . . Ally Attacks 7 | . . 7 . . . Total Damage 65 | . . 65 . . . Kills 2 | . . 2 . . . Allies Corrupted . | . . . . . . Allies Melted . | . . . . . . Intel | -11 -10 -10 -10 -9 -8 ------- Run | Yrd Mat Min Exi Min Mat Active Infowar (turns) 44 | . . . . . 44 Sensors 44 | . . . . . 44 Robot Analysis Total . | . . . . . . Derelict Logs Recovered 2 | . . 2 . . . Drone Launches . | . . . . . . Drone Recoveries . | . . . . . . Exploration | -11 -10 -10 -10 -9 -8 ------------- Run | Yrd Mat Min Exi Min Mat Turns Passed 2421 | 65 996 607 245 24 484 Spaces Moved 1400 | 38 425 436 209 21 271 Core 15 | 3 . 5 . . 7 Treads 566 | 35 425 98 . . 8 Legs 219 | . . . . . 219 Wheels . | . . . . . . Hover . | . . . . . . Flight 600 | . . 333 209 21 37 Fastest Speed 32 | 50 160 117 117 117 32 Average Speed 135 | 151 160 127 117 117 122 Slowest Speed 200 | 160 160 200 117 117 190 Overloaded Moves . | . . . . . . Propulsion Burnouts . | . . . . . . Robots Hopped . | . . . . . . Potential Cave-ins . | . . . . . . Cave-ins Triggered . | . . . . . . Exploration Rate (%) 44 | 4 71 98 60 11 24 Regions Visited 5 Branch Regions 3 Pre-discovered Areas 2 | . . 2 . . . Known Exits Taken 4 | . 1 1 1 1 . Unknown Exits Taken 1 | 1 . . . . . Scrap Searched 1 | . . 1 . . . Spaces Dug 5 | . 5 . . . . Terrain Destroyed 85 | . 5 . . . 80 Melee 5 | . 5 . . . . Projectile 1 | . . . . . 1 AOE 79 | . . . . . 79 Terrain Rammed 1 | . . . . . 1 Walls Destroyed . | . . . . . . Machines Disabled . | . . . . . . Actions | -11 -10 -10 -10 -9 -8 --------- Run | Yrd Mat Min Exi Min Mat Total 1665 | 43 574 458 210 20 360 Wait 49 | . 19 . . . 30 Move 1395 | 37 424 435 208 20 271 Hop . | . . . . . . Pick Up 11 | . 7 2 1 . 1 Fast Attach 22 | 6 4 . . . 12 Attach 7 | . 1 2 . . 4 Detach . | . . . . . . Swap 6 | . 2 1 . . 3 Drop 5 | . . 3 1 . 1 Fire 93 | . 72 . . . 21 Melee 73 | . 44 15 . . 14 Ram 1 | . . . . . 1 Kick 2 | . . . . . 2 Crush 1 | . 1 . . . . Escape Stasis . | . . . . . . Rewire . | . . . . . . Trap . | . . . . . . Miscellaneous . | . . . . . . Route ------- -11/Scrapyard -10/Materials (discovered 4 exits: *Mat x3 / *Min) -10/Mines (discovered 3 exits: *Mat x2 / *Exi) -10/Exiles -9/Mines -8/Materials History --------- Turn | Location | Event 4 | -11/Scrapyard | Discovered new exit (range 16) 66 | -11/Scrapyard | Entered Materials 119 | -10/Materials | Identified exit to Materials 314 | -10/Materials | Build established: Mutant 616 | -10/Materials | Discovered new exit (range 8) 927 | -10/Materials | Core integrity fell below 50% 1060 | -10/Materials | Identified exit to Mines 1062 | -10/Materials | Entered Mines 1063 | -10/Mines | Assembled infested the area 1068 | -10/Mines | Assisted by a Guerilla fighting off Assembled 1234 | -10/Mines | System corruption reached 10% 1362 | -10/Mines | Learned location of Recycling (-7) 1368 | -10/Mines | Learned location of Zion (-6) 1412 | -10/Mines | Discovered exit to Materials (range 3) 1486 | -10/Mines | Assisted by bots powering up and referring to "LRC-V3" 1587 | -10/Mines | Discovered exit to Materials (range 14) 1663 | -10/Mines | Deemed a non-threat by the Exiles lab entrance 1665 | -10/Mines | Discovered new exit (range 5) 1668 | -10/Mines | Identified exit to Exiles 1669 | -10/Mines | Entered Exiles 1669 | -10/Exiles | Accompanied by 3 allies 1698 | -10/Exiles | Met 8R-AWN 1717 | -10/Exiles | Met EX-HEX 1753 | -10/Exiles | Met EX-BIN 1765 | -10/Exiles | Aligned with FarCom system 1767 | -10/Exiles | Given EX-Vault access code 1794 | -10/Exiles | Opened EX-Vault 1801 | -10/Exiles | Found 0b10 Alert Chip 1824 | -10/Exiles | Warned to stay clear of 0b10 Research branches 1863 | -10/Exiles | Met EX-DEC 1904 | -10/Exiles | Discovered new exit (range 10) 1913 | -10/Exiles | Identified exit to Mines 1914 | -10/Exiles | Left Exiles lab with 0b10 Alert Chip 1914 | -10/Exiles | Entered Mines 1931 | -9/Mines | Discovered new exit (range 6) 1937 | -9/Mines | Identified exit to Materials 1938 | -9/Mines | Entered Materials 1938 | -8/Materials | Evolved 4 slots: Propulsion x2, Utility x2 2017 | -8/Materials | Core integrity fell below 50% 2032 | -8/Materials | Core integrity fell below 20% 2058 | -8/Materials | Lost 9 parts (1p3n2u3w) 2321 | -8/Materials | Build established: Scavenger-Mutant 2422 | -8/Materials | Lost 3 parts (2n1w) 2422 | -8/Materials | Destroyed by H-61 Shepherd with Heavy Assault Cannon Last Messages --------------- 02376_ Acquired Titanium Leg. 02378_ K-01 Serf collects debris. 02379_ Acquired Titanium Leg. 02381_ K-01 Serf collects debris. 02391_ Aluminum Leg destroyed. 02392_ Acquired 2 matter. 02399_ System corrupted: Energy discharge (-66). 02401_ Triggered Proton Bomb Trap. 02401_ A bubble of electromagnetic force engulfs the area. 02401_ Door malfunctions. 02410_ Acquired 7 matter. 02412_ R-06 Scavenger collects Aluminum Leg. 02414_ System corrupted: Component data lost. 02415_ R-06 Scavenger collects Pulse Rifle. 02416_ Slug penetrates Wall. 02418_ K-01 Serf collects debris. 02418_ Knocked back. 02421_ K-01 Serf collects debris. 02422_ Lgt. Treads destroyed. Map ----- +----------------------------------------------------+ | ?????##########???????????????????????????????? | | ????? #???????????????????????????????? | | ????# """ """ #???????????????????????????????? | | ????# """ """ #####???????????????????????????? | | ????# """ """ + ###########?????????????????? | | ????# ## / #????#####????????? | | ????# "Y" ## ## """ %#??? #????????? | | ????# """ ## ## """ #?? #????????? | | ????# ## ## """ #?? #????????? | | ????########/## # #? #????????? | | ?????????# # [ # #????????? | | ?????????# x + [ # ##???????? | | ????########/##H # [ #??????? | | ????# #; ## #??????? | | ????# ## ######## # #??????? | | ????# """ """ ## ;#### # #??????? | | ????# """ """ / ! # ???????? | | ????# """ """ ##x " / ?????? | | ????? ## ## ## ### ?????? | | ????? = # %== ## ## #?????????? | | ????# # != ## ## ]= #?????????? | | ############### = ## #? ]= #?????????? | | # !! # """ # "# #? ] #?????????? | | # ! # "T" ## ## #? #?????????? | | # # ## % # #?????????? | | # # ###### #@ # #########??######?? | | #! #+#+###### #%#r # #??? ??? | | # + *% % k# #??? ???? | | # """ ! # #?? ????? | | # """ ###+##### # #?? ?????? | | # """ ## ]# ###/###????? | | # ## ! # # # #????? | | # ## [# """ """ # ! # #????? | | ########## # """""""" # + " +????? | | ?????????# # """"" " # # #????? | | ?????????# #] ########## !#????? | | ?????????# # #????????### ######## | | ?????????# #############??????????# #?# | | ?????????# ## #?????????### ### | | ???????######### ########### # """ | | ???????# ## """ # # """" | | ???????# ## "" # + """" | | ???????#""" ##"" " [ #% # """" | | ???????#"R ##"T ""%%+% ####### # """ | | ???????#""" ##"" """ # #?????####### | | ???????# ## !%# #???????????###### | | ???????####+############## #????????????????? | | ???????# #????????????????? | | ???????# #????????????????? | | ???????# #????????????????? | +----------------------------------------------------+ Best States ------------- Heat Dissipation 50 Energy Generation 12 Energy Capacity 265 Matter Stores 300 Matter Capacity 300 Sight Range 16 Robot Scan Range 14 Terrain Scan Density 10 Evasion (%) 63 Targeting Accuracy 8 Recoil Reduction 2 Offensive Hacking 10 Item Schematics ----------------- None Robot Schematics ------------------ None Fabricated ------------ Nothing Repaired ---------- Nothing Studied --------- None Alien Tech Used ----------------- None Achievements -------------- None Challenges ------------ None Game ------ Seed LinkedMyomerManipulator Manual? 0 Play Time 00:20:38 Cumulative 62.8 hours Start 2026.02.11 @ 12:56:57 End 2026.02.11 @ 13:13:02 Sessions 1 Manual Loads 0 Difficulty Rogue Special Mode None Game No. 106 Rogue 106 Adventurer 0 Explorer 0 Win Type - Total 0 Types 0/0/0/0/0/0/0/0/0/0 Lore% 34 Gallery% 40 Achievement% 29 Wizard Run 0 Options --------- Layout 1 ASCII 0 Keyboard 1 Movement Arrows Keybinds 0 Fullscreen 1 Font 24/Smallcaps Map View 50x35 Zoom Use 0% Tactical HUD 1 Map Filters NONE Filters NONE Steam 1 RUN: 4d4c698b-466f-4b9c-96c4-33eb4240c55f